Cogmind - Beta 11 @@@ ROGUE MODE // 2022.03.26 @ 18:58:17 Player: AlmondRoll Result: Destroyed by Enhanced Grunt with Neutron Cannon Performance ------------- Evolutions (4) 2000 Regions Visited (11) 2200 Robots Destroyed (140) 700 Value Destroyed (4178) 4178 Prototype IDs (239) 4780 Alien Tech Used (0) 0 Bonus (5288) 5288 TOTAL SCORE: 19146 Bonus ------- High Alert Combat Kills 310 Follower Combat Kills 927 Entered DSFs 500 Aligned with FarCom 300 Met Data Miner 300 Used Data Conduit 3000 Friendly Fire -49 Cogmind --------- Core Integrity 0/850 Matter 221/300 Energy 100/100 System Corruption 9% Temperature Cool (0) Movement Flying (40) Location -6/Data Miner Parts ------- > --- POWER (2) -------- (None) > --- PROPULSION (2) --- Biomechanical Wings > --- UTILITY (8) ------ Gravity Neutralizer > --- WEAPON (3) ------- (None) > --- INVENTORY (5) ---- Gravity Neutralizer Advanced Signal Interpreter Improved Hacking Suite Improved System Shield Peak State ------------ > --- POWER ------------ Light Angular Momentum Engine Fission Core > --- PROPULSION ------- Armored Huge Wheel > --- UTILITY ---------- Advanced Heat Sink Cargo Storage Unit Gravity Neutralizer Improved Particle Charger Hacking Suite Hacking Suite Improved System Shield > --- WEAPON ----------- Plasma Rifle Heavy Ion Cannon Phase Cannon > --- INVENTORY -------- Fission Core Light Fission Core Armored Huge Wheel Armored Huge Wheel Biomechanical Wings Biomechanical Wings Advanced Heat Sink Advanced Heat Sink Advanced Heat Sink Advanced Heat Sink Cargo Storage Unit Gravity Neutralizer Advanced Signal Interpreter Advanced Signal Interpreter Improved Hacking Suite Improved System Shield Authchip [Weapon] Authchip [Weapon] Long-range Tractor Beam Chronowheel Heavy Laser Improved EM Pulse Cannon Heavy Rocket Launcher Heavy Flail Heavy Pick Deploy-a-Sentry Deploy-a-Sentry [Rating: 75] Favorites ----------- Power Ion Engine Engine Ion Engine Power Core Light Nuclear Core Propulsion Light Treads Treads Light Treads Leg Aluminum Leg Wheel Compact Wheel Flight Unit Biomechanical Wings Utility Advanced Heat Sink Device Advanced Heat Sink Storage Humpback Processor Improved Signal Interpreter Hackware Hacking Suite Protection Improved Light Armor Plating Weapon Assault Rifle Energy Gun Heavy EM Shotgun Energy Cannon Heavy Ion Cannon Ballistic Gun Assault Rifle Launcher Grenade Launcher Impact Weapon Heavy Flail Piercing Weapon Heavy Pick Build | -11 -10 -10 -10 -9 -8 -7 -7 -6 -6 -6 -6 ------- Run | Scr Mat Min Exi Min Mat Fac DSF Fac Low Low Dat Slots Evolved 8 | . . . . . 4 2 . 2 . . . Power 1 | . . . . . . 1 . . . . . Propulsion . | . . . . . . . . . . . . Utility 6 | . . . . . 3 1 . 2 . . . Weapon 1 | . . . . . 1 . . . . . . Parts Attached 185 | 3 13 2 1 4 52 . 24 73 1 9 3 Power 17 | . . . . . 2 . 4 10 . 1 . Engine 9 | . . . . . 1 . 4 3 . 1 . Core 8 | . . . . . 1 . . 7 . . . Reactor . | . . . . . . . . . . . . Propulsion 19 | 2 . . . . 7 . 1 7 1 . 1 Treads 6 | 2 . . . . 4 . . . . . . Leg . | . . . . . . . . . . . . Wheel 11 | . . . . . 3 . 1 6 1 . . Hover . | . . . . . . . . . . . . Flight 2 | . . . . . . . . 1 . . 1 Utility 73 | 1 2 . 1 . 21 . 11 33 . 3 1 Device 58 | 1 1 . . . 17 . 10 27 . 1 1 Storage 3 | . 1 . 1 . . . 1 . . . . Processor 4 | . . . . . 3 . . 1 . . . Hackware 5 | . . . . . . . . 5 . . . Protection 3 | . . . . . 1 . . . . 2 . Artifact . | . . . . . . . . . . . . Weapon 76 | . 11 2 . 4 22 . 8 23 . 5 1 Energy Gun 22 | . 3 . . . 9 . 3 4 . 3 . Energy Cannon 27 | . . . . . 5 . 4 16 . 2 . Ballistic Gun 12 | . 5 1 . 2 4 . . . . . . Ballistic Cannon . | . . . . . . . . . . . . Launcher 9 | . 3 1 . 2 1 . . 2 . . . Special Weapon . | . . . . . . . . . . . . Impact Weapon 4 | . . . . . 3 . 1 . . . . Slashing Weapon . | . . . . . . . . . . . . Piercing Weapon 2 | . . . . . . . . 1 . . 1 Special Melee Weapon . | . . . . . . . . . . . . Unidentified Prototypes 5 | . . . . . 2 . . 3 . . . Corrupted Parts 1 | . . . . . . . . . . 1 . System Corruption 6 | . . . . . . . . . . 6 . Parts Lost 36 | . . . . . 5 . 10 10 . 6 5 Power 7 | . . . . . . . 3 4 . . . Propulsion 5 | . . . . . 2 . 2 . . . 1 Utility 10 | . . . . . . . 4 2 . 2 2 Weapon 14 | . . . . . 3 . 1 4 . 4 2 Highest Loss Streak 10 | . . . . . 3 . 10 3 . 4 5 To Critical Strikes . | . . . . . . . . . . . . Average Slot Usage (%) 86 | . 99 100 88 85 88 76 59 86 86 80 16 Engine 9 | . 14 14 14 14 5 . 8 6 6 9 1 Core 2 | . . . . . 3 7 1 5 6 3 . Treads 14 | . 28 28 28 28 12 . . . . . . Wheel 3 | . . . . . 5 15 7 6 6 6 . Device 15 | . 13 14 3 . 24 23 18 23 20 13 1 Storage 9 | . 14 14 14 14 9 7 6 6 6 6 . Hackware 4 | . . . . . . . . 13 20 20 1 Energy Gun 4 | . 3 . . . 6 23 9 5 6 7 . Energy Cannon 6 | . . . . . 10 . 3 14 13 9 . Ballistic Gun 13 | . 24 28 28 27 9 . . . . . . Naked Turns 23 | . . . . . . . 22 . . . 1 Heaviest Build 242 | 14 51 50 209 209 236 222 242 186 184 195 3 Greatest Support 44 | 40 40 40 40 40 40 28 28 44 40 40 6 Greatest Overweight (x) 10 | . 1 1 5 5 7 7 10 7 4 6 . Average Overweight (x) 4 | . . 1 3 5 5 7 6 4 4 4 . Largest Inventory Capacity 35 | 8 20 20 35 35 35 35 35 30 30 30 30 Average Capacity 30 | 8 19 20 31 35 35 35 28 30 30 30 5 Most Carried 35 | 8 20 20 32 35 35 34 33 30 30 30 28 Average Carried 28 | 5 16 20 25 33 33 34 23 29 29 29 1 Final Capacity 35 | 8 20 20 35 35 35 35 30 30 30 30 5 Final Carried 34 | 8 20 20 32 33 34 34 30 30 29 28 4 Class Distribution -------------------- 29% | Hauler-Mutant 25% | Hauler-Skirmisher 17% | Hacker-Gunner 17% | Mutant 4% | Hauler-Gunner 3% | Hacker-Mutant Dominant Class ---------------- Mutant | -10/Materials Mutant | -10/Mines Hauler-Mutant | -10/Exiles Hauler-Mutant | -9/Mines Hauler-Skirmisher | -8/Materials Hauler-Skirmisher | -7/Factory Hauler-Mutant | -7/DSF Hacker-Gunner | -6/Factory Hacker-Gunner | -6/Lower Caves Hacker-Gunner | -6/Lower Caves Mutant | -6/Data Miner Resources | -11 -10 -10 -10 -9 -8 -7 -7 -6 -6 -6 -6 ----------- Run | Scr Mat Min Exi Min Mat Fac DSF Fac Low Low Dat Matter Collected 2739 | 233 349 8 . 162 919 . 223 711 75 59 . Remotely . | . . . . . . . . . . . . Salvage Created 6239 | 84 552 19 . 221 1523 . 57 3136 297 350 . Parts 309 | 7 44 6 . 19 73 . 4 124 7 25 . Haulers Intercepted 10 | . 2 . . . 4 . . 4 . . . Recyclers Shooed 5 | 1 1 . . . 1 . . 2 . . . Parts Field Recycled . | . . . . . . . . . . . . Retrieved Matter . | . . . . . . . . . . . . Parts Self-Destructed 35 | . . . . . . . . . 9 26 . Prevented 16 | . . . . . . . . . 9 7 . Kills | -11 -10 -10 -10 -9 -8 -7 -7 -6 -6 -6 -6 ------- Run | Scr Mat Min Exi Min Mat Fac DSF Fac Low Low Dat Combat Hostiles Destroyed 90 | . 10 3 . 6 26 . 1 34 3 7 . Guns 30 | . 4 . . 3 18 . 1 3 . 1 . Cannons 27 | . . . . . 5 . . 17 2 3 . AOE 26 | . 6 3 . 3 3 . . 11 . . . Classes Destroyed 17 | 2 5 . . 1 1 . . 6 1 1 . Worker 7 | . . . . 1 1 . . 5 . . . Builder 6 | . . . . . . . . 6 . . . Tunneler 3 | 1 . . . 2 . . . . . . . Hauler 10 | . 2 . . . 4 . . 4 . . . Recycler 13 | 1 1 . . . 5 . . 6 . . . Mechanic 1 | . . . . . . . . 1 . . . Operator 3 | . 2 . . . 1 . . . . . . Watcher 7 | . 2 . . . 2 . . 3 . . . Swarmer 28 | . 2 3 . . 11 . . 12 . . . Grunt 45 | . 8 . . 6 12 . 1 13 3 2 . Brawler 1 | . . . . . . . . 1 . . . Duelist 2 | . . . . . . . . 1 . 1 . Sentry 5 | . . . . . 3 . . 2 . . . Hunter 3 | . . . . . . . . 3 . . . Programmer 5 | . . . . . . . . 2 . 3 . Samaritan 2 | . . . . . . . . . 2 . . Master Thief 1 | . . . . . . . . . . 1 . Best Kill Streak 15 | 2 4 3 . 6 5 . 1 15 2 3 . Combat Bots Only 4 | . 3 3 . 4 4 . 1 4 2 3 . Max Kills in Single Turn 6 | 2 2 2 . 3 3 . 1 6 2 1 . Gunslinging 1 | . . . . . 1 . . . . . . Exploded 3 | . 2 2 . 2 2 . . 3 . . . Melee . | . . . . . . . . . . . . Uniques/NPCs Destroyed . | . . . . . . . . . . . . Combat | -11 -10 -10 -10 -9 -8 -7 -7 -6 -6 -6 -6 -------- Run | Scr Mat Min Exi Min Mat Fac DSF Fac Low Low Dat Damage Taken 6236 | . 321 41 . 187 1120 . 1065 2086 55 945 416 Core 1320 | . 10 13 . 27 129 . 261 280 . 184 416 Absorbed by Shields 25 | . . . . . . . 25 . . . . Core Remaining (%) 79 | 100 . . . 80 76 . 62 . . . . Volleys Fired 276 | 3 50 2 . 13 79 . 14 90 5 20 . Largest 3 | 2 2 1 . 2 3 . 3 3 3 3 . Hottest 235 | 70 70 30 . 40 195 . 195 235 225 225 . Shots Fired 677 | 6 93 2 . 21 217 . 30 238 15 55 . Gun 383 | 6 89 . . 16 171 . 6 61 5 29 . Cannon 277 | . . . . . 44 . 24 173 10 26 . Launcher 17 | . 4 2 . 5 2 . . 4 . . . Special . | . . . . . . . . . . . . Kinetic 226 | 3 75 . . 16 132 . . . . . . Thermal 289 | 3 11 . . . 44 . 24 137 15 55 . Explosive 17 | . 4 2 . 5 2 . . 4 . . . Electromagnetic 145 | . 3 . . . 39 . 6 97 . . . Robot Hit Streak 16 | 1 11 12 . 15 16 . 13 15 4 14 . Robot Miss Streak 5 | 2 5 . . 4 4 . 2 3 2 3 . Penetration Max . | . . . . . . . . . . . . Secondary Targets 5 | . . . . . 4 . . 1 . . . Max Gunslinging Chain 1 | . . . . . 1 . . 1 . . . Shots Hit Robots 417 | 3 52 1 . 11 141 . 23 139 7 39 1 Core Hits 231 | 3 26 3 . 15 67 . 3 98 4 12 . Critical Kills 3 | . . . . . . . . 1 2 . . Critical Parts Destroyed . | . . . . . . . . . . . . Critical Strikes 7 | . 1 . . . . . . 2 3 1 . Burn 3 | . 1 . . . . . . . 1 1 . Meltdown 3 | . . . . . . . . 1 2 . . Corrupt 1 | . . . . . . . . 1 . . . Melee Attacks 6 | . . . . . 4 . 1 . . . 1 Impact 5 | . . . . . 4 . 1 . . . . Slashing . | . . . . . . . . . . . . Piercing 1 | . . . . . . . . . . . 1 Sneak Attacks 1 | . . . . . . . . . . . 1 Combat Hostiles . | . . . . . . . . . . . . Follow-up Attacks . | . . . . . . . . . . . . Damage Inflicted 11993 | 39 902 131 . 585 2511 . 774 5506 390 1075 80 Guns 3948 | 39 614 . . 124 1466 . 97 1024 77 507 . Cannons 5065 | . . . . . 755 . 582 2847 313 568 . Explosions 2814 | . 288 131 . 461 204 . 95 1635 . . . Melee 80 | . . . . . . . . . . . 80 Ramming 86 | . . . . . 86 . . . . . . Kinetic 1651 | 26 527 . . 124 974 . . . . . . Thermal 6362 | 13 87 . . . 820 . 677 3300 390 1075 . Explosive 1556 | . 288 131 . 461 139 . . 537 . . . Electromagnetic 2258 | . . . . . 492 . 97 1669 . . . Impact . | . . . . . . . . . . . . Slashing . | . . . . . . . . . . . . Piercing 80 | . . . . . . . . . . . 80 Highest Corruption 9 | . . . . . 2 . . 1 2 9 9 Average Corruption 2 | . . . . . 2 . . 1 1 5 9 Corruption Purged . | . . . . . . . . . . . . Corruption Blocked . | . . . . . . . . . . . . Effects 51 | . . . . . 11 . . 6 7 23 4 Message Errors 9 | . . . . . 1 . . 1 1 4 2 Matter Fused 11 | . . . . . 3 . . . 3 5 . Heat Flow Errors 6 | . . . . . . . . 1 2 3 . Energy Discharges 8 | . . . . . 2 . . . 1 4 1 Parts Rejected 1 | . . . . . . . . . . . 1 Data Loss (minor) 8 | . . . . . . . . 4 . 4 . Data Loss (major) 3 | . . . . . 1 . . . . 2 . Misfires 1 | . . . . . . . . . . 1 . Alerts 4 | . . . . . 4 . . . . . . Overload Shots . | . . . . . . . . . . . . Overflow Damage 173 | . 35 . . 4 19 . . 113 . 2 . Projectiles 30 | . . . . . 19 . . 9 . 2 . Explosions 143 | . 35 . . 4 . . . 104 . . . Melee . | . . . . . . . . . . . . Knockbacks . | . . . . . . . . . . . . Impact . | . . . . . . . . . . . . Kinetic . | . . . . . . . . . . . . Secondary . | . . . . . . . . . . . . Self-Inflicted Damage 297 | . 40 13 . 47 17 . . 180 . . . Shots 8 | . 2 1 . 1 . . . 4 . . . Rammed 6 | . . . . . 6 . . . . . . Targets Rammed 6 | . . . . . 6 . . . . . . Kicked . | . . . . . . . . . . . . Crushed . | . . . . . . . . . . . . Highest Temperature 787 | 50 112 . . 2 135 . 787 345 305 461 . Average Temperature 98 | 26 50 . . 1 27 . 202 99 113 112 . Received Heat Transfer 1476 | . 147 . . 78 459 . . 486 18 288 . Effects 17 | . . . . . . . 11 3 . 3 . Shutdowns 4 | . . . . . . . 3 . . 1 . Energy Bleed 1 | . . . . . . . 1 . . . . Interference 8 | . . . . . . . 5 3 . . . Short Circuit 1 | . . . . . . . 1 . . . . Damage (major) 2 | . . . . . . . . . . 2 . Damage (core) 1 | . . . . . . . 1 . . . . Siege Activations . | . . . . . . . . . . . . Robots Corrupted 3 | . . . . . . . . 3 . . . Combat Hostiles 2 | . . . . . . . . 2 . . . Parts Fried 14 | . . . . . 2 . . 11 . 1 . Impact Corruptions . | . . . . . . . . . . . . Robots Melted 6 | . . . . . . . . 1 2 3 . Combat Hostiles 5 | . . . . . . . . 1 1 3 . Parts Melted 21 | . . . . . 4 . . 9 3 5 . Heat Transferred 8667 | 37 333 . . . 1036 . 803 4049 583 1826 . Parts Sabotaged . | . . . . . . . . . . . . Parts Stolen 2 | . . . . . . . . . . 2 . Parts Stripped . | . . . . . . . . . . . . Power Chain Reactions 10 | . . . . . 1 . 1 8 . . . Missiles Intercepted . | . . . . . . . . . . . . Alert | -11 -10 -10 -10 -9 -8 -7 -7 -6 -6 -6 -6 ------- Run | Scr Mat Min Exi Min Mat Fac DSF Fac Low Low Dat Peak Influence 932 | 10 370 239 . 132 286 81 192 932 . . . Initial 124 | . 6 124 . . 7 81 56 100 . . . Average 219 | 7 237 238 . 8 73 81 132 513 . . . Maximum Alert Level 3 | . 1 1 . . 1 . . 3 . . . Low Security (%) 61 | 100 32 . . 100 91 100 100 16 . . . Level 1 21 | . 67 99 . . 8 . . 23 . . . Level 2 7 | . . . . . . . . 27 . . . Level 3 9 | . . . . . . . . 33 . . . Level 4 . | . . . . . . . . . . . . Level 5 . | . . . . . . . . . . . . High Security . | . . . . . . . . . . . . Max Security . | . . . . . . . . . . . . Sterilizations 1 | . . . . . . . 1 . . . . Squads Dispatched 17 | . 2 . . . 2 . 2 11 . . . Investigation 6 | . 1 . . . 1 . . 4 . . . Extermination 3 | . . . . . . . . 3 . . . Reinforcement 7 | . 1 . . . 1 . 2 3 . . . Assault 1 | . . . . . . . . 1 . . . Garrison . | . . . . . . . . . . . . Intercept . | . . . . . . . . . . . . Searches Triggered . | . . . . . . . . . . . . Construction Impeded 2 | . . . . . . . . 2 . . . Haulers Reinforced . | . . . . . . . . . . . . Active Scanning Responses . | . . . . . . . . . . . . Cargo Convoy Interrupts . | . . . . . . . . . . . . Stealth | -11 -10 -10 -10 -9 -8 -7 -7 -6 -6 -6 -6 --------- Run | Scr Mat Min Exi Min Mat Fac DSF Fac Low Low Dat Distress Signals 6 | . 3 . . . 2 . . 1 . . . Communications Jammed . | . . . . . . . . . . . . Distress Signals . | . . . . . . . . . . . . Times Spotted 144 | . 19 3 . 6 37 . 7 45 9 14 4 Peak Tracking Total 4 | . 4 3 . 4 4 . 4 4 4 4 4 Tactical Retreats 2 | . 1 . . . 1 . . . . . . Traps | -11 -10 -10 -10 -9 -8 -7 -7 -6 -6 -6 -6 ------- Run | Scr Mat Min Exi Min Mat Fac DSF Fac Low Low Dat Traps Triggered 5 | . 2 . . . 1 . 1 1 . . . Indirectly . | . . . . . . . . . . . . Trap Hack Attempts . | . . . . . . . . . . . . Triggered . | . . . . . . . . . . . . Disarmed . | . . . . . . . . . . . . Reprogrammed . | . . . . . . . . . . . . Reused . | . . . . . . . . . . . . Traps Extracted . | . . . . . . . . . . . . Installed . | . . . . . . . . . . . . Triggered . | . . . . . . . . . . . . Machines | -11 -10 -10 -10 -9 -8 -7 -7 -6 -6 -6 -6 ---------- Run | Scr Mat Min Exi Min Mat Fac DSF Fac Low Low Dat Machines Disabled 23 | . 3 1 . . 2 . . 17 . . . Max in Single Turn 6 | . 1 1 . . 1 . . 6 . . . Garrison Access 1 | . . . . . . . . 1 . . . Machines Sabotaged . | . . . . . . . . . . . . Garrisons Compromised . | . . . . . . . . . . . . Overloaded Fab Kills . | . . . . . . . . . . . . Hacking | -11 -10 -10 -10 -9 -8 -7 -7 -6 -6 -6 -6 --------- Run | Scr Mat Min Exi Min Mat Fac DSF Fac Low Low Dat Machines Accessed 33 | . 6 . 2 . 6 1 . 11 . 3 4 Terminals 16 | . 5 . . . 5 1 . 5 . . . Fabricators 2 | . . . . . . . . 2 . . . Repair Stations . | . . . . . . . . . . . . Recycling Units 4 | . 1 . . . 1 . . 2 . . . Scanalyzers 1 | . . . . . . . . 1 . . . Garrison Access 1 | . . . . . . . . 1 . . . Total Hacks 126 | . 23 . 2 . 21 1 . 43 . 9 27 Successful 86 | . 13 . 2 . 9 1 . 25 . 9 27 Failed 40 | . 10 . . . 12 . . 18 . . . Catastrophic 2 | . . . . . . . . 2 . . . Database Lockouts . | . . . . . . . . . . . . Manual 54 | . 15 . 1 . 13 . . 25 . . . Terminals 55 | . 20 . . . 19 1 . 15 . . . Fabricators 13 | . . . . . . . . 13 . . . Repair Stations . | . . . . . . . . . . . . Recycling Units 16 | . 3 . . . 2 . . 11 . . . Scanalyzers 3 | . . . . . . . . 3 . . . Garrison Access 1 | . . . . . . . . 1 . . . Terminal Hacks 56 | . 8 . 2 . 6 1 . 3 . 9 27 Record 19 | . . . 1 . . . . . . 7 11 Part Schematic 10 | . . . . . . . . 1 . . 9 Robot Schematic 5 | . . . . . . . . 1 . . 4 Robot Analysis 5 | . 2 . . . 3 . . . . . . Prototype ID Bank 6 | . 3 . . . . . . . . . 3 Open Door 2 | . . . . . . . . . . 2 . Open DSF 1 | . . . . . . 1 . . . . . Branch Access Points 1 | . . . . . 1 . . . . . . Terminal Index 2 | . 1 . . . . . . 1 . . . Unreport Threat 1 | . . . . . 1 . . . . . . Locate Traps 1 | . 1 . . . . . . . . . . Hauler Manifests 2 | . 1 . . . 1 . . . . . . EX-Prototype ID Bank 1 | . . . 1 . . . . . . . . Fabricator Hacks 6 | . . . . . . . . 6 . . . Load Schematic 3 | . . . . . . . . 3 . . . Build 3 | . . . . . . . . 3 . . . Repair Station Hacks . | . . . . . . . . . . . . Recycling Unit Hacks 4 | . 1 . . . 1 . . 2 . . . Retrieve Components 4 | . 1 . . . 1 . . 2 . . . Scanalyzer 2 | . . . . . . . . 2 . . . Insert Component 1 | . . . . . . . . 1 . . . Analyze 1 | . . . . . . . . 1 . . . Garrison Access Hacks 1 | . . . . . . . . 1 . . . Seal Access 1 | . . . . . . . . 1 . . . Unauthorized Hacks 17 | . 4 . . . 2 . . 11 . . . Terminals 7 | . 3 . . . 2 . . 2 . . . Botnet 5 | . 1 . . . 2 . . 2 . . . Operators 2 | . 2 . . . . . . . . . . Fabricators 1 | . . . . . . . . 1 . . . Prioritize 1 | . . . . . . . . 1 . . . Repair Stations . | . . . . . . . . . . . . Recycling Units 9 | . 1 . . . . . . 8 . . . Monitor 2 | . . . . . . . . 2 . . . Reject 2 | . . . . . . . . 2 . . . Recyclers 2 | . . . . . . . . 2 . . . Mask 2 | . . . . . . . . 2 . . . Tunnel 1 | . 1 . . . . . . . . . . Scanalyzers . | . . . . . . . . . . . . Garrison Access . | . . . . . . . . . . . . Data Cores Recovered . | . . . . . . . . . . . . Used . | . . . . . . . . . . . . Hacking Detections 18 | . 5 . . . 5 . . 8 . . . Full Trace Events 3 | . . . . . . . . 3 . . . Feedback Events 1 | . . . . . . . . 1 . . . Corruption 1 | . . . . . . . . 1 . . . Feedback Blocked . | . . . . . . . . . . . . Robot Schematics Acquired 5 | . . . . . . . . 1 . . 4 Robots Built 4 | . . . . . . . . 4 . . . Authchips 1 | . . . . . . . . 1 . . . Time 168 | . . . . . . . . 168 . . . Total Robot Build Rating 24 | . . . . . . . . 24 . . . Part Schematics Acquired 11 | . . . . . . . . 2 . . 9 Parts Built 2 | . . . . . . . . 2 . . . Authchips 1 | . . . . . . . . 1 . . . Time 84 | . . . . . . . . 84 . . . Total Part Build Rating 8 | . . . . . . . . 8 . . . Parts Repaired . | . . . . . . . . . . . . Time . | . . . . . . . . . . . . Parts Recycled . | . . . . . . . . . . . . Recycled Matter . | . . . . . . . . . . . . Retrieved Matter . | . . . . . . . . . . . . Retrieved Components 1 | . . . . . . . . 1 . . . Parts Scanalyzed 1 | . . . . . . . . 1 . . . Part Schematics Acquired 1 | . . . . . . . . 1 . . . Parts Damaged . | . . . . . . . . . . . . Bothacking | -11 -10 -10 -10 -9 -8 -7 -7 -6 -6 -6 -6 ------------ Run | Scr Mat Min Exi Min Mat Fac DSF Fac Low Low Dat Used RIF Installer . | . . . . . . . . . . . . Robots Hacked . | . . . . . . . . . . . . Non-combat . | . . . . . . . . . . . . Combat . | . . . . . . . . . . . . Robot Hacks Applied . | . . . . . . . . . . . . Relay Couplers Released . | . . . . . . . . . . . . Fabnet Peak Effective % . | . . . . . . . . . . . . Robots Rewired . | . . . . . . . . . . . . Allies Hacked 3 | . . . . . . . . 1 . 2 . Hacks Repelled . | . . . . . . . . . . . . Allies | -11 -10 -10 -10 -9 -8 -7 -7 -6 -6 -6 -6 -------- Run | Scr Mat Min Exi Min Mat Fac DSF Fac Low Low Dat Total Allies 9 | . . . . 3 . . . 5 . 1 . Largest Group 5 | . . . . 3 . . . 5 5 4 2 Highest-Rated Group 245 | . . . . 40 . . . 245 245 191 78 Highest-Rated Ally 54 | . . . . 16 . . . 54 54 54 54 Total Orders . | . . . . . . . . . . . . Ally Attacks 150 | . . . . 14 . . 24 19 24 55 14 Total Damage 4454 | . . . . 137 . . 1266 633 848 1220 350 Kills 27 | . . . . 2 . . 7 5 7 6 . Allies Corrupted . | . . . . . . . . . . . . Allies Melted . | . . . . . . . . . . . . Turrets Deployed 2 | . . . . . . . 1 . . . 1 Intel | -11 -10 -10 -10 -9 -8 -7 -7 -6 -6 -6 -6 ------- Run | Scr Mat Min Exi Min Mat Fac DSF Fac Low Low Dat Robot Analysis Total 133 | . 2 . . . 3 . . . . . 128 Derelict Logs Recovered 4 | . . . . 1 . . . . 2 1 . Drone Launches . | . . . . . . . . . . . . Drone Recoveries . | . . . . . . . . . . . . Exploration | -11 -10 -10 -10 -9 -8 -7 -7 -6 -6 -6 -6 ------------- Run | Scr Mat Min Exi Min Mat Fac DSF Fac Low Low Dat Turns Passed 12672 | 48 1001 317 2805 955 3154 16 542 2378 423 929 104 Spaces Moved 4257 | 20 341 127 664 157 730 9 215 1071 250 486 187 Core 18 | . . . . . . . 16 . . . 2 Treads 1635 | 20 341 127 664 157 326 . . . . . . Legs . | . . . . . . . . . . . . Wheels 2419 | . . . . . 404 9 199 1071 250 486 . Hover . | . . . . . . . . . . . . Flight 185 | . . . . . . . . . . . 185 Fastest Speed 40 | 160 160 240 240 560 190 200 50 160 160 160 40 Average Speed 258 | 160 235 240 417 560 359 200 190 172 160 173 40 Slowest Speed 560 | 160 240 240 560 560 560 200 250 205 160 190 50 Overloaded Moves . | . . . . . . . . . . . . Propulsion Burnouts . | . . . . . . . . . . . . Robots Hopped 2 | . . . . . . . 1 . . . 1 Cave-ins Triggered . | . . . . . . . . . . . . Exploration Rate (%) 55 | 2 67 28 89 51 58 . 92 26 49 66 78 Regions Visited 11 Branch Regions 6 Pre-discovered Areas 30 | . 1 . 1 . . . . . . . 28 Known Exits Taken 4 | . . . . 1 1 1 . 1 . . . Unknown Exits Taken 6 | 1 1 1 1 . . . . . 1 1 . Scrap Searched 4 | . . . . . . . . . 1 3 . Spaces Dug 27 | . 3 5 . . 6 . 1 12 . . . Terrain Destroyed 206 | . 31 10 . 24 35 . 2 97 1 6 . Melee 5 | . . . . . 4 . 1 . . . . Projectile 61 | . . . . . 12 . . 42 1 6 . AOE 140 | . 31 10 . 24 19 . 1 55 . . . Terrain Rammed . | . . . . . . . . . . . . Walls Destroyed . | . . . . . . . . . . . . Machines Disabled . | . . . . . . . . . . . . Actions | -11 -10 -10 -10 -9 -8 -7 -7 -6 -6 -6 -6 --------- Run | Scr Mat Min Exi Min Mat Fac DSF Fac Low Low Dat Total 5379 | 31 454 137 704 215 1078 8 319 1423 263 532 215 Wait 306 | . 21 7 . 37 106 . 16 103 2 1 13 Move 4242 | 19 340 126 663 156 729 8 212 1070 249 485 185 Hop 2 | . . . . . . . 1 . . . 1 Pick Up 202 | 4 19 . 29 3 52 . 37 41 3 9 5 Fast Attach 35 | 1 . . 1 . 8 . 6 12 . 4 3 Attach 49 | 1 1 . . . 14 . 9 19 1 4 . Detach 2 | . 1 . . . . . . 1 . . . Swap 101 | 1 12 2 . 4 30 . 9 42 . 1 . Drop 141 | 2 10 . 11 2 50 . 4 45 3 7 7 Fire 276 | 3 50 2 . 13 79 . 14 90 5 20 . Melee 6 | . . . . . 4 . 1 . . . 1 Ram 2 | . . . . . 2 . . . . . . Kick . | . . . . . . . . . . . . Crush 4 | . . . . . 4 . . . . . . Escape Stasis 10 | . . . . . . . 10 . . . . Rewire 1 | . . . . . . . . . . 1 . Trap . | . . . . . . . . . . . . Miscellaneous . | . . . . . . . . . . . . Route ------- -11/Scrapyard -10/Materials -10/Mines -10/Exiles (discovered 2 exits: [*Min x2]) -9/Mines -8/Materials -7/Factory -7/DSF -6/Factory -6/Lower Caves -6/Lower Caves -6/Data Miner (discovered 1 exit: [*Pro]) History --------- Turn | Location | Event 13 | -11/Scrapyard | Discovered new exit (range 3) 49 | -11/Scrapyard | Entered Materials 303 | -10/Materials | Build established: Mutant 363 | -10/Materials | Discovered new exit (range 10) 1050 | -10/Materials | Entered Mines 1089 | -10/Mines | Met a Derelict bent on vengeance 1357 | -10/Mines | Deemed a non-threat by the Exiles lab entrance 1357 | -10/Mines | Discovered new exit (range 5) 1367 | -10/Mines | Entered Exiles 1399 | -10/Exiles | Discovered new exit (range 15) 1427 | -10/Exiles | Met 8R-AWN 1471 | -10/Exiles | Met EX-HEX 1562 | -10/Exiles | Met EX-DEC 1571 | -10/Exiles | Learned location of Zion (-7) 1610 | -10/Exiles | Met EX-BIN 1739 | -10/Exiles | Aligned with FarCom system 1742 | -10/Exiles | Given EX-Vault access code 1797 | -10/Exiles | Opened EX-Vault 1819 | -10/Exiles | Found Chronowheel 1838 | -10/Exiles | Found Army-in-a-Box 1862 | -10/Exiles | Found Deploy-a-Sentry 1865 | -10/Exiles | Found Deploy-a-Sentry 1868 | -10/Exiles | Found Deploy-a-Sentry 1927 | -10/Exiles | Warned to stay clear of 0b10 Research branches 2393 | -10/Exiles | Build established: Hauler-Mutant 3277 | -10/Exiles | Visited The Gauntlet 4111 | -10/Exiles | Discovered new exit (range 14) 4172 | -10/Exiles | Stole three prototypes: Army-in-a-Box, Chronowheel, Deploy-a-Sentry 4172 | -10/Exiles | Entered Mines 4189 | -9/Mines | Assisted by bots powering up and referring to "LRC-V3" 4426 | -9/Mines | Excavation squad dispatched 4426 | -9/Mines | A large section of the Mines collapsed 4601 | -9/Mines | Identified exit to Materials 4676 | -9/Mines | Excavation squad dispatched 4926 | -9/Mines | Excavation squad dispatched 5127 | -9/Mines | Entered Materials 5127 | -8/Materials | Evolved 4 slots: Utility x3, Weapon x1 5435 | -8/Materials | Build established: Hauler-Skirmisher 5486 | -8/Materials | Lost 3 parts (2n1w) 8175 | -8/Materials | Discovered new exit (range 10) 8279 | -8/Materials | Identified exit to Factory 8281 | -8/Materials | Entered Factory 8281 | -7/Factory | Evolved 2 slots: Power x1, Utility x1 8283 | -7/Factory | FarCom data flow suspended 8295 | -7/Factory | Identified exit to DSF 8297 | -7/Factory | Entered DSF 8350 | -7/DSF | Additional patrols routed to DSF 8370 | -7/DSF | DAS Turret deployed 8380 | -7/DSF | Released all parts (4) 8411 | -7/DSF | Lost 10 parts (3p2n4u1w) 8650 | -7/DSF | Sterilization system engaged 8655 | -7/DSF | Discovered new exit (range 15) 8670 | -7/DSF | Ambient heat levels rising (+10) 8685 | -7/DSF | Ambient heat levels rising (+10) 8700 | -7/DSF | Ambient heat levels rising (+10) 8715 | -7/DSF | Ambient heat levels rising (+10) 8730 | -7/DSF | Ambient heat levels rising (+10) 8745 | -7/DSF | Ambient heat levels rising (+10) 8760 | -7/DSF | Ambient heat levels rising (+10) 8775 | -7/DSF | Ambient heat levels rising (+10) 8790 | -7/DSF | Ambient heat levels rising (+10) 8805 | -7/DSF | Ambient heat levels rising (+10) 8820 | -7/DSF | Ambient heat levels rising (+10) 8835 | -7/DSF | Ambient heat levels rising (+10) 8839 | -7/DSF | Entered Factory 8839 | -6/Factory | Evolved 2 slots: Utility x2 9483 | -6/Factory | Discovered new exit (range 11) 9611 | -6/Factory | Identified exit to Lower Caves 10239 | -6/Factory | First assault squad dispatched 10303 | -6/Factory | Lost 3 parts (1p2u) 10408 | -6/Factory | Build established: Hacker-Gunner 10491 | -6/Factory | Spotted B-75 Beast 10853 | -6/Factory | Lost 3 parts (2p1w) 10928 | -6/Factory | Fabricated P-70 Sage? 11053 | -6/Factory | Sage 5a assimilated hostile G-50 Soldier 11107 | -6/Factory | Fabricated Arm. Huge Wheel (x2) 11196 | -6/Factory | Fabricated P-70 Sage? 11217 | -6/Factory | Entered Lower Caves 11217 | -6/Lower Caves | Accompanied by 5 allies 11350 | -6/Lower Caves | Learned location of 1 exit from Factory 11546 | -6/Lower Caves | Encountered a Warlord checkpoint 11580 | -6/Lower Caves | Discovered new exit (range 15) 11581 | -6/Lower Caves | Learned 8 Factory zone layouts 11632 | -6/Lower Caves | Spotted B-75 Beast 11640 | -6/Lower Caves | Entered another Lower Caves area 11640 | -6/Lower Caves | Accompanied by 4 allies 11981 | -6/Lower Caves | Learned location of 1 exit from Factory 12059 | -6/Lower Caves | Sage 5d assimilated hostile Y-64 Sentinel 12070 | -6/Lower Caves | Learned 8 Factory zone layouts 12070 | -6/Lower Caves | Learned Extension trap positions 12070 | -6/Lower Caves | Learned Extension emergency access door positions 12070 | -6/Lower Caves | Learned Extension terminal intel 12070 | -6/Lower Caves | Learned Research security intel 12070 | -6/Lower Caves | Learned Research garrison access intel 12127 | -6/Lower Caves | Core integrity fell below 50% 12175 | -6/Lower Caves | Lost 4 parts (1u3w) 12524 | -6/Lower Caves | Spotted S8-PE4(f) 12524 | -6/Lower Caves | Spotted 4R-0QN(f) 12525 | -6/Lower Caves | Encountered a Master Thief 12525 | -6/Lower Caves | Encountered a Master Thief 12525 | -6/Lower Caves | Spotted CH-JGN(f) 12526 | -6/Lower Caves | Encountered a Master Thief 12528 | -6/Lower Caves | Chronowheel stolen by Master Thief 12529 | -6/Lower Caves | Deploy-a-Sentry stolen by Master Thief 12541 | -6/Lower Caves | Destroyed CH-JGN(f) 12546 | -6/Lower Caves | Discovered new exit (range 12) 12569 | -6/Lower Caves | Entered Data Miner 12569 | -6/Data Miner | Accompanied by 2 allies 12571 | -6/Data Miner | Released all parts (9) 12571 | -6/Data Miner | Discovered new exit (range 7) 12586 | -6/Data Miner | Met Data Miner 12602 | -6/Data Miner | Lost 5 parts (1n2u2w) 12611 | -6/Data Miner | Learned location of Section 7 (-3) 12611 | -6/Data Miner | Acquired the access code to Warlord's prototype stash 12618 | -6/Data Miner | Received God Mode back door access code from Data Miner 12628 | -6/Data Miner | Interfaced with the Data Conduit 12632 | -6/Data Miner | DAS Turret deployed 12672 | -6/Data Miner | Core integrity fell below 20% 12673 | -6/Data Miner | Destroyed by Enhanced Grunt with Neutron Cannon Last Messages --------------- Downloaded 718 prototype IDs. Downloaded central machine database. Downloaded 27 destinations. Downloaded encryption format records. Connection remotely terminated. 12631_ Dropped Deploy-a-Sentry. 12632_ System corrupted: Hvy. Pick rejected. 12632_ DAS Turret deployed. 12632_ Enhanced Grunt suffers critical hit (Blast). 12632_ Destroyed Adv. Heat Sink. 12633_ Enhanced Grunt knocked back. 12638_ DAS Turret destroyed. 12640_ Sage 5d fails to hack Enhanced Grunt. 12643_ Soldier 5a destroyed. 12646_ Sage 5d destroyed. 12650_ System corrupted: Energy discharge (-36). 12665_ Acquired Gravity Neutralizer. 12669_ Acquired Adv. Signal Interpreter. 12671_ Acquired Imp. System Shield. 12672_ Acquired Imp. Hacking Suite. Map ----- +----------------------------------------------------+ | | | | | | | | | | | | | | | | | | | | | | | | | | | | | ????????????????????????????????????? | | ????????????????????????????????????? | | ????????????????????????????????????? | | ????????????????????????????????????? | | ????????????????????????####????????? | | ########????#########?### #????????? | | """""""###### "%# # ### #????????? | | " " "" # # # ; ## < ###???????? | | % ;#####???? | | g ! !!] #???? | | g % * ![[*#???? | | % g @[[]!=!#???? | | % g !=* ##???? | | """""""""" """"";####????? | | /% """"################???????? | | " """###??????????????????????? | | "#####????????????????????????? | | ## "#????????????????????????????? | | ### "#????????????????????????????? | | ### "#????????????????????????????? | | ## "#????????????????????????????? | | ## "#????????????????????????????? | | # "#????????????????????????????? | | ### "#????????????????????????????? | | ??# "##???????????????????????????? | | ?## ""#???????????????????????????? | | ## ""#???????????????????????????? | | #"X ""#???????????????????????????? | | "" "####????????????????????????? | | "" X"""""????????????????????????? | | #"X "##"#????????????????????????? | | ## X""""#????????????????????????? | | ?## "##"#????????????????????????? | | ??#######???????????????????????????? | | ????????????????????????????????????? | | ????????????????????????????????????? | +----------------------------------------------------+ Best States ------------- Heat Dissipation 113 Energy Generation 31 Energy Capacity 520 Matter Stores 300 Matter Capacity 300 Sight Range 16 Robot Scan Range 15 Terrain Scan Range 16 Terrain Scan Density 10 Additional Mass Support 12 Corruption Block 8 Armor Coverage 600 Evasion (%) 62 Recoil Reduction 2 Particle Charging 20 Offensive Hacking 20 Defensive Hacking 12 Authchip Count 4 Item Schematics ----------------- Adv. Hacking Suite | -6/Factory | Hacked Arm. Huge Wheel | -6/Factory | Scanalyzed Combat Drone Bay | -6/Data Miner | Free Lgt. Regenerative Plating | -6/Data Miner | Free Imp. Energy Well | -6/Data Miner | Free Tesla Bomb Launcher | -6/Data Miner | Free Impulse Thruster | -6/Data Miner | Free Graphene Brace | -6/Data Miner | Free Enh. Armored Leg | -6/Data Miner | Free Matter Neutralizer | -6/Data Miner | Free Imp. Remote Force Field | -6/Data Miner | Free Robot Schematics ------------------ P-70 Sage | -6/Factory | Hacked G-50 Soldier | -6/Data Miner | Free A-15 Conveyor | -6/Data Miner | Free B-48 Gladiator | -6/Data Miner | Free B-60 Warrior | -6/Data Miner | Free Fabricated ------------ P-70 Sage | x2 | -6/Factory | Authchip Arm. Huge Wheel | x2 | -6/Factory | Authchip P-70 Sage | x2 | -6/Factory Alien Tech Used ----------------- None Achievements -------------- None Challenges ------------ None Game ------ Seed AerolevImpactAirjet Manual? 0 Play Time 02:12:13 Cumulative 348.1 hours Start 2022.03.26 @ 16:00:59 End 2022.03.26 @ 18:58:17 Sessions 1 Manual Loads 0 Difficulty Rogue Special Mode None Game No. 186 Rogue 186 Adventurer 0 Explorer 0 Win Type - Total 10 Types 6/0/2/2/0/0/0/0/0 Lore% 80 Gallery% 82 Achievement% 67 Wizard Run 0 Options --------- ASCII 0 Keyboard 0 Movement Numpad Keybinds 0 Fullscreen 1 Font 18/SmallcapsGlow Map View 76x50 Tactical HUD 1 Map Filters NONE Filters NONE Steam 1 RUN: 395bfcbb-2de4-4589-a76c-3f84bc35aac9